lending/lending_fUSD_20240816
["ID","MTS","AMOUNT","RATE_DAILY","PERIOD"]
[335094923,1723823446109,-567.96560199,0.00011,2]
[335094924,1723823446120,-416.0689448,0.00011,2]
[335094925,1723823446132,-1445.43042,0.00011,2]
[335094926,1723823446148,-322.8916,0.00011,2]
[335094927,1723823446234,-150.0,0.00011,2]
[335094928,1723823446835,-150.0,0.00011,2]
[335094929,1723823447393,-150.0,0.00011,2]
[335094930,1723823448091,-150.0,0.00011,2]
[335094931,1723823448724,-150.0,0.00011,2]
[335094932,1723823449201,-150.0,0.00011,2]
[335094933,1723823449597,-150.0,0.00011,2]
[335094934,1723823449982,-150.0,0.00011,2]
[335094935,1723823450377,-150.0,0.00011,2]
[335094936,1723823450941,-150.0,0.00011,2]
[335094937,1723823451516,-150.0,0.00011,2]
[335094938,1723823452021,-150.0,0.00011,2]
[335094939,1723823452500,-150.0,0.00011,2]
[335094940,1723823453090,-150.0,0.00011,2]
[335094941,1723823453526,-150.0,0.00011,2]
[335094942,1723823454289,-150.0,9.997e-05,2]
[335094943,1723823455107,-150.0,9.997e-05,2]
[335094944,1723823455641,-150.0,9.997e-05,2]
[335094945,1723823456196,-150.0,9.997e-05,2]
[335094946,1723823456844,-150.0,9.997e-05,2]
[335094947,1723823457346,-150.0,9.997e-05,2]
[335094948,1723823458026,-150.0,9.997e-05,2]
[335094949,1723823458582,-150.0,9.997e-05,2]
[335094950,1723823459158,-150.0,9.997e-05,2]
[335094951,1723823459780,-150.0,9.997e-05,2]
[335094952,1723823460313,-150.0,9.997e-05,2]
[335094953,1723823460915,-150.0,9.997e-05,2]
[335094954,1723823461601,-150.0,9.997e-05,2]
[335094955,1723823462060,-150.0,9.997e-05,2]
[335094956,1723823462520,-150.0,9.997e-05,2]
[335094957,1723823463066,-150.0,9.997e-05,2]
[335094958,1723823463538,-150.0,9.997e-05,2]
[335094959,1723823464062,-150.0,9.997e-05,2]
[335094960,1723823464508,-150.0,9.997e-05,2]
[335094961,1723823467963,-150.0,9.997e-05,2]
[335094962,1723823468446,-150.0,9.997e-05,2]
[335094963,1723823469369,-150.0,9.997e-05,2]
[335094964,1723823472457,-150.0,9.997e-05,2]
[335094965,1723823473309,-150.0,9.997e-05,2]
[335094966,1723823473790,-150.0,9.997e-05,2]
[335094967,1723823474492,-150.0,9.997e-05,2]
[335094968,1723823475093,-150.0,9.997e-05,2]
[335094969,1723823477506,-150.0,9.997e-05,2]
[335094970,1723823478189,-150.0,9.997e-05,2]
[335094971,1723823478743,-150.0,9.997e-05,2]
[335094972,1723823479287,-150.0,9.997e-05,2]
[335094973,1723823522439,-83.6185,9.997e-05,2]
[335094974,1723823530807,-150.0,0.0001089,2]
[335094975,1723823532478,-150.0,0.0001089,2]
[335094976,1723823532909,-150.0,0.0001089,2]
[335094977,1723823533482,-150.0,0.0001089,2]
[335094978,1723823533963,-150.0,0.0001089,2]
[335094979,1723823534392,-150.0,0.0001089,2]
[335094980,1723823534984,-150.0,0.0001089,2]
[335094981,1723823816745,133.76614721,0.0001,2]
[335094982,1723823953288,-416.23385279,0.0001,2]
[335094983,1723823953312,-201.61565741,0.0001,2]
[335094984,1723823953333,-164.85161435,0.0001,2]
[335094985,1723823953355,-297.89887545,0.0001,2]
[335094986,1723824031542,150.0,0.00024693,120]
[335094991,1723824511113,19803.0,0.00025,60]
[335095001,1723824570734,150.0,0.00024823,120]
[335095012,1723824584256,-300.0,9.999e-05,2]
[335095013,1723824584287,-330.29507359,9.999e-05,2]
[335095014,1723824584315,-150.0,0.0001,2]
[335095015,1723824584346,-150.0,0.0001,2]
[335095016,1723824584376,-150.0,0.0001,2]
[335095017,1723824584407,-150.0,0.0001,2]
[335095018,1723824584436,-150.0,0.0001,2]
[335095019,1723824584464,-225.11590535,0.0001,2]
[335095020,1723824584494,-2827.42343476,0.0001,2]
[335095021,1723824584529,-1399.55919425,0.0001,2]
[335095022,1723824584607,-155.0,0.00010097,2]
[335095023,1723824584635,-155.0,0.00010097,2]
[335095024,1723824584664,-460.4481801,0.00010471,2]
[335095030,1723824632106,-304.77980935,0.00010371,2]
[335095031,1723824632116,-300.0,0.00010471,2]
[335095032,1723824632129,-213.14019065,0.00010471,2]
[335095033,1723824632141,-1731.28504997,0.00010471,2]
[335095034,1723824632218,-558.34536955,0.00010471,2]
[335095035,1723824632229,-41.55463045,0.00010471,2]
[335095036,1723824632240,-113.44536955,0.00010471,2]
[335095037,1723824632250,-650.89584616,0.00010505,2]
[335095038,1723824632262,-155.0,0.00010566,2]
[335095039,1723824632272,-81.73787357,0.00010566,2]
[335095040,1723824632284,-73.26212643,0.00010566,2]
[335095041,1723824632294,-1129.03897357,0.000109,2]
[335095042,1723824632306,-628.4461735,0.000109,2]
[335095043,1723824632328,-494.33663641,0.000109,2]
[335095054,1723824638122,-165.75942727,0.000109,2]
[335095055,1723824638131,-298.7327268,0.000109,2]
[335095056,1723824638179,-174.22326074,0.000109,2]
[335095057,1723824638188,-211.24225046,0.000109,2]
[335095058,1723824638200,-303.02571544,0.000109,2]
[335095059,1723824638212,-282.04696975,0.000109,2]
[335095060,1723824638227,-566.76354058,0.000109,2]
[335095061,1723824638251,-3393.62743353,0.000109,2]
[335095062,1723824638263,-165.19422617,0.000109,2]
[335095063,1723824638274,-173.5900964,0.000109,2]
[335095064,1723824638286,-155.0,0.00010949,2]
[335095065,1723824638298,-282.48,0.00010997,2]
[335095066,1723824638309,-196.79083301,0.00010997,2]
[335095067,1723824638320,-500.0,0.00010999,2]
[335095068,1723824638331,-682.23,0.00010999,2]
[335095069,1723824638352,-9011.08741089,0.00011,2]
[335095070,1723824638365,-654.8367585,0.00011,2]
[335095072,1723824638421,-0.08403124,0.00011,2]
[335095075,1723824638433,-600.0,0.00011,2]
[335095077,1723824638446,-544.01346895,0.00011,2]
[335095083,1723824638493,-44923.16959173,0.00011,2]
[335095085,1723824638505,-285.49172499,0.00011,2]
[335095087,1723824638516,-713.52089121,0.00011,2]
[335095090,1723824638528,-7198.28290195,0.00011,2]
[335095128,1723824639039,-23354.9760548,0.00011,2]
[335095260,1723824640240,-114578.9548274,0.00011,2]
[335095261,1723824640349,-870.77,0.00011,2]
[335095263,1723824640490,-1922.61,0.00011,2]
[335095269,1723824640538,-543.43566378,0.00011,2]
[335095273,1723824640576,-4136.88,0.00011,2]
[335095280,1723824640628,-1682.77130462,0.00011,2]
[335095286,1723824640684,-566.7453937,0.00011,2]
[335095288,1723824640696,-3389.85894358,0.00011,2]
[335095290,1723824640708,-1248.0,0.00011,2]
[335095295,1723824640741,-326.24910808,0.00011,2]
[335095535,1723824643910,-1740.63,0.00011,2]
[335095537,1723824643922,-260.82297409,0.00011,2]
[335095539,1723824643934,-551699.04776684,0.00011,2]
[335095541,1723824643947,-636.225,0.00011,2]
[335095715,1723824646263,-949.64761681,0.00011,2]
[335095717,1723824646274,-271.0699,0.00011,2]
[335095728,1723824646372,-1083.8233578,0.00011,2]
[335095730,1723824646383,-8772.71939073,0.00011,2]
[335095755,1723824646642,-322.08,0.00011,2]
[335101618,1723824732274,-400.0,0.000103,3]
[335101619,1723824732302,-900.0,0.000104,3]
[335101620,1723824732328,-1300.0,0.000105,3]
[335101621,1723824750794,150.0,0.00023166,120]
[335101628,1723824871051,150.0,0.00023578,120]
[335101630,1723824991511,150.0,0.00023847,120]
[335101702,1723825230775,150.0,0.00024985,120]
[335102043,1723825353065,150.0,9.272e-05,2]
[335102044,1723825353087,150.0,9.272e-05,2]
[335102045,1723825353109,150.0,9.272e-05,2]
[335102046,1723825353133,150.0,9.272e-05,2]
[335102047,1723825353155,150.0,9.272e-05,2]
[335102048,1723825353176,150.0,9.272e-05,2]
[335102049,1723825353198,77.18,9.272e-05,2]
[335102050,1723825354593,-185.00468339,0.000106,3]
[335102051,1723825355812,-150.0,0.000106,3]
[335102052,1723825356362,-150.0,0.000106,3]
[335102053,1723825356920,-150.0,0.000106,3]
[335102054,1723825357506,-150.0,0.000106,3]
[335102055,1723825358256,-150.0,0.000106,3]
[335102056,1723825359140,-150.0,0.000106,3]
[335102057,1723825359745,-150.0,0.000106,3]
[335102058,1723825360179,-150.0,0.000106,3]
[335102059,1723825360934,-150.0,0.000106,3]
[335102060,1723825361486,-150.0,0.000106,3]
[335102061,1723825409819,-2000.0,0.00011,10]
[335102118,1723825424233,-114.99531661,0.000106,3]
[335102119,1723825424264,-2200.0,0.000107,3]
[335102120,1723825424293,-400.0,0.000108,3]
[335102121,1723825424323,-400.0,0.000109,3]
[335102122,1723825433176,-150.0,0.000106,2]
[335102123,1723825433598,-31.86810677,0.000106,2]
[335102124,1723825433619,-118.13189323,0.00010861,2]
[335102125,1723825434352,-150.0,0.00010861,2]
[335102126,1723825434810,-150.0,0.00010861,2]
[335102127,1723825470791,150.0,0.00024344,120]
[335102135,1723825536564,300.0,9.5e-05,2]
[335102157,1723825609460,-150.0,0.00010713,2]
[335102167,1723825623710,550.0,0.0001,2]
[335102203,1723825670812,-150.0,0.00010699,2]
[335102243,1723825731773,-80.3988761,0.00010699,2]
[335102244,1723825731799,-69.6011239,0.00010699,2]
[335102245,1723825732474,-150.0,0.00010699,2]
[335102307,1723825784222,-119.40902156,0.00010699,2]
[335102308,1723825784243,-30.59097844,0.00010699,2]
[335102320,1723825830803,150.0,0.0002325,120]
[335102322,1723825832330,-124.43522805,0.00010699,2]
[335102323,1723825832339,-155.0,0.00010713,2]
[335102324,1723825832349,-155.0,0.00010713,2]
[335102326,1723825832359,-300.0,0.00010899,2]
[335102328,1723825832370,-300.0,0.00010899,2]
[335102329,1723825832382,-2575.73031654,0.000109,2]
[335102330,1723825832394,-2400.0,0.000109,2]
[335102331,1723825832538,-6050.0,0.000109,2]
[335102619,1723825838293,-281.28656295,0.000109,2]
[335102620,1723825838305,-338.06368153,0.000109,2]
[335102621,1723825838318,-5213.42451616,0.000109,2]
[335102622,1723825838328,-1083.21685596,0.000109,2]
[335102623,1723825838338,-35177.21504474,0.0001099,2]
[335102624,1723825838358,-599.2800009,0.0001099,2]
[335102625,1723825838370,-8053.5938037,0.0001099,2]
[335102626,1723825838385,-15284.08254343,0.0001099,2]
[335102627,1723825838421,-25866.38954706,0.0001099,2]
[335102628,1723825838432,-196.79083292,0.00010997,2]
[335102629,1723825838442,-626.86788084,0.00010999,2]
[335102630,1723825838452,-12329.6568344,0.00011,2]
[335102631,1723825838480,-7617.22660386,0.00011,2]
[335102632,1723825838537,-7078.27699527,0.00011,2]
[335102825,1723825840543,-441.16796285,0.00011,2]
[335102827,1723825840558,-1167.575,0.00011,2]
[335102829,1723825840572,-7834.9248763,0.00011,2]
[335102858,1723825840898,-62949.87717947,0.00011,2]
[335102860,1723825840909,-292.036,0.00011,2]
[335103069,1723825843354,-21364.59764562,0.00011,2]
[335103094,1723825844218,-500.0,0.00011,2]
[335103096,1723825844230,-11937.25999999,0.00011,2]
[335103097,1723825844242,-5840.00000002,0.00011,2]
[335103103,1723825847904,-3030.3091062,0.000109,2]
[335103104,1723825847915,-626.86788084,0.00010999,2]
[335103105,1723825847925,-7587.66079679,0.00011,2]
[335103106,1723825847937,-1474.31476316,0.00011,2]
[335103107,1723825847969,-624.09688597,0.00011,2]
[335103108,1723825847980,-552.86,0.00011,2]
[335103109,1723825848191,-1467.13398238,0.00011,2]
[335103110,1723825848203,-1301.4492522,0.00011,2]
[335103111,1723825848267,-66.96554781,0.00011,2]
[335103115,1723825862928,10000.0,0.00025,60]
[335103116,1723825879282,300.0,0.000103,3]
[335103117,1723825881406,700.0,0.000104,3]
[335103118,1723825883530,1100.0,0.000105,3]
[335103119,1723825889605,-150.0,0.000106,3]
[335103120,1723825890149,-150.0,0.000106,3]
[335103121,1723825890663,-150.0,0.000106,3]
[335103122,1723825950879,150.0,0.00023284,120]
[335103123,1723826011315,150.0,0.0002301,120]
[335103128,1723826470351,974.37,8.815e-05,2]
[335103130,1723826549752,367.82,0.00010234,2]
[335103131,1723826557197,150.0,0.00010215,2]
[335103132,1723826557220,150.0,0.00010215,2]
[335103133,1723826557243,150.0,0.00010215,2]
[335103134,1723826557263,150.0,0.00010215,2]
[335103135,1723826557284,150.0,0.00010215,2]
[335103136,1723826557307,150.0,0.00010215,2]
[335103137,1723826557328,100.0,0.00010215,2]
[335103138,1723826572201,168.13189323,0.00010188,2]
[335103139,1723826572225,9831.86810677,0.00010188,2]
[335103140,1723826580854,163.48,0.00010126,2]
[335103141,1723826593435,514.33,0.00010172,2]
[335103142,1723826616840,150.81,0.00010134,2]
[335103143,1723826648568,-216.87279016,0.00010505,2]
[335103144,1723826662953,429.03,0.00010187,2]
[335103145,1723826689823,250.0,0.00010125,2]
[335103146,1723826690991,1768.29189323,0.000102,2]
[335103147,1723826700191,-150.0,0.000102,2]
[335103148,1723826700710,-150.0,0.000102,2]
[335103149,1723826701343,-150.0,0.000102,2]
[335103150,1723826701804,-150.0,0.000102,2]
[335103151,1723826702290,-150.0,0.000102,2]
[335103152,1723826703899,-150.0,0.000102,2]
[335103154,1723826704390,-150.0,0.000102,2]
[335103155,1723826704837,-150.0,0.000102,2]
[335103156,1723826705307,-150.0,0.000102,2]
[335103168,1723826787770,-41.22810677,0.000102,2]
[335103169,1723826787793,-108.77189323,0.00010458,2]
[335103170,1723826788284,-150.0,0.00010458,2]
[335103257,1723826840345,-150.0,0.000103,3]
[335103503,1723826924251,453.65,9.911e-05,2]
[335103504,1723826924279,228.07,9.911e-05,2]
[335103522,1723826949986,150.0,8.219e-05,2]
[335103523,1723826950007,150.0,8.219e-05,2]
[335103524,1723826950031,150.0,8.219e-05,2]
[335103525,1723826950053,150.0,8.219e-05,2]
[335103526,1723826950075,227.18,8.219e-05,2]
[335103527,1723826950102,120.02,8.219e-05,2]
[335103528,1723826951622,-150.0,0.00010026,2]
[335103529,1723826952151,-150.0,0.00010026,2]
[335103530,1723826952663,-150.0,0.00010026,2]
[335103538,1723827006597,150.0,9.925e-05,2]
[335103539,1723827006618,50.0,9.925e-05,2]
[335103553,1723827031485,-181.86810677,0.00010026,2]
[335103555,1723827031495,-1162.91758119,0.00010026,2]
[335103560,1723827031542,-116.23150632,0.00010026,2]
[335103561,1723827031551,-330.29507359,0.00010026,2]
[335103562,1723827031561,-150.0,0.000103,3]
[335103563,1723827031570,-600.0,0.000104,3]
[335103564,1723827031579,-200.0,0.00010413,2]
[335103565,1723827031588,-300.0,0.00010457,2]
[335103566,1723827031597,-300.0,0.00010457,2]
[335103567,1723827031606,-15.7693794,0.00010458,2]
[335103568,1723827031617,-11734.0,0.00010458,2]
[335103569,1723827031628,-590.71338148,0.00010458,2]
[335103570,1723827031646,-781.95019923,0.00010458,2]
[335103571,1723827031657,-2130.44985288,0.00010458,2]
[335103572,1723827031671,-827.13712285,0.00010458,2]
[335103573,1723827031702,-2933.40559046,0.00010458,2]
[335103574,1723827031807,-4627.80258047,0.00010458,2]
[335103575,1723827031816,-947.2,0.0001048,2]
[335103576,1723827031825,-900.0,0.000105,3]
[335103577,1723827031835,-155.0,0.00010505,2]
[335103578,1723827031844,-440.25519205,0.00010505,2]
[335103579,1723827031854,-178.44,0.00010511,2]
[335103580,1723827031863,-1009.75436645,0.000106,3]
[335103586,1723827031970,-290.24563355,0.000106,3]
[335103588,1723827031979,-374.8766471,0.000107,3]
[335103590,1723827031989,-1225.1233529,0.000107,3]
[335103592,1723827031999,-150.0,0.00010767,2]
[335103594,1723827032008,-300.0,0.000108,3]
[335103596,1723827032017,-155.0,0.00010852,2]
[335103597,1723827032026,-175.18,0.0001088,2]
[335103598,1723827032035,-255.29819999,0.00010888,2]
[335103599,1723827032044,-172.77042105,0.00010888,2]
[335103600,1723827032055,-98.59755095,0.00010888,2]
[335103601,1723827032066,-80.92094466,0.00010888,2]
[335103602,1723827032075,-155.18542092,0.0001089,2]
[335103603,1723827032084,-166.44772973,0.0001089,2]
[335103604,1723827032093,-368.02160394,0.00010899,2]
[335103605,1723827032102,-54.82498551,0.000109,2]
[335103610,1723827037640,-155.0,0.00010799,2]
[335103611,1723827037649,-432.64200537,0.00010899,2]
[335103612,1723827037659,-920.07018489,0.000109,2]
[335103613,1723827037668,-300.0,0.000109,3]
[335103614,1723827037677,-2020.2060708,0.000109,2]
[335103615,1723827037686,-155.0,0.00010949,2]
[335103616,1723827037695,-366.51001001,0.00010949,2]
[335103617,1723827037704,-155.20601412,0.00010949,2]
[335103618,1723827037713,-155.0,0.00010949,2]
[335103619,1723827037723,-339.01014546,0.00010949,2]
[335103620,1723827037731,-486.12274777,0.00010949,2]
[335103621,1723827037741,-250.0,0.00010959,2]
[335103622,1723827037750,-230.3988761,0.00010979,2]
[335103623,1723827037759,-10477.74014178,0.0001098,2]
[335103624,1723827037774,-14630.23903379,0.0001098,2]
[335103625,1723827037782,-3499.90530669,0.00010997,2]
[335103626,1723827037791,-1020.00472426,0.00010999,2]
[335103627,1723827037800,-256.72459399,0.00010999,2]
[335103628,1723827037809,-121047.27626037,0.00011,2]
[335103629,1723827037831,-11820.0,0.00011,2]
[335103630,1723827037868,-4148.83321461,0.00011,2]
[335103631,1723827037879,-2637.18354382,0.00011,2]
[335103632,1723827037890,-2534.29871705,0.00011,2]
[335103633,1723827037900,-815.0,0.00011,2]
[335103634,1723827037911,-574.98736815,0.00011,2]
[335103655,1723827038223,-29558.99999997,0.00011,2]
[335103812,1723827039680,-819.45729106,0.00011,2]
[335103821,1723827040064,-5999.83789367,0.00011,2]
[335103822,1723827040072,-2000.0,0.00011,2]
[335103823,1723827040083,-362.98334613,0.00011,2]
[335103824,1723827040091,-261.99249465,0.00011,2]
[335103825,1723827040108,-4600.80106248,0.00011,2]
[335103826,1723827040116,-1468.025,0.00011,2]
[335103827,1723827040150,-284.87258687,0.00011,2]
[335103828,1723827040158,-566.18888113,0.00011,2]
[335103854,1723827042559,-258.105,0.00011,2]
[335103857,1723827042571,-9624.51635632,0.00011,2]
[335103874,1723827042728,-333.59523142,0.00011,2]
[335103883,1723827045268,-1019.32532604,0.00011,2]
[335103885,1723827045279,-6180.65784,0.00011,2]
[335103887,1723827045291,-5899.8762,0.00011,2]
[335103888,1723827045302,-3476.63696484,0.00011,2]
[335103889,1723827045314,-865.26308682,0.00011,2]
[335103900,1723827045732,-1449.96550931,0.00011,2]
[335103901,1723827045744,-1412.93673964,0.00011,2]
[335103902,1723827045755,-591.5645175,0.00011,2]
[335103903,1723827045774,-2400.0,0.00011,2]
[335103904,1723827045785,-1140.33466279,0.00011,2]
[335103905,1723827045796,-4068.391154,0.00011,2]
[335103906,1723827045807,-4883.9047737,0.00011,2]
[335103907,1723827045848,-7917.15550376,0.00011,2]
[335103908,1723827045863,-48253.24190608,0.00011,2]
[335103909,1723827045874,-3224.0758753,0.00011,2]
[335103910,1723827045885,-651.17689476,0.00011,2]
[335103911,1723827045896,-4892.905875,0.00011,2]
[335103912,1723827045911,-30922.38175663,0.00011,2]
[335103922,1723827430855,200.0,0.0001,2]
[335103923,1723827430881,345.50118713,0.0001,2]
[335103930,1723828010541,150.0,8.919e-05,2]
[335103931,1723828010564,150.0,8.919e-05,2]
[335103932,1723828010585,150.0,8.919e-05,2]
[335103933,1723828010606,150.0,8.919e-05,2]
[335103934,1723828010628,150.0,8.919e-05,2]
[335103935,1723828010650,150.0,8.919e-05,2]
[335103936,1723828010672,88.98,8.919e-05,2]
[335104201,1723828048608,-4.49881287,0.0001,2]
[335104203,1723828048631,-152.31385682,0.00010097,2]
[335104287,1723828205610,-229.87881805,0.00010009,2]
[335104300,1723828231787,-263.90569064,0.00010009,2]
[335104301,1723828231796,-157.73314063,0.00010026,2]
[335104302,1723828231805,-214.94751681,0.00010471,2]
[335104303,1723828231815,-250.0,0.0001061,2]
[335104304,1723828231824,-145.42678321,0.00010678,2]
[335104305,1723828231836,-54.57321679,0.00010678,2]
[335104306,1723828231846,-934.24440369,0.00010678,2]
[335104307,1723828231859,-3.73950326,0.00010678,2]
[335104308,1723828231868,-155.67856311,0.00010862,2]
[335104309,1723828231877,-447.02903903,0.00010873,2]
[335104310,1723828231938,-365.33096097,0.00010873,2]
[335104311,1723828231948,-155.0,0.00010888,2]
[335104312,1723828231959,-2834.8086,0.0001089,2]
[335104313,1723828231973,-150.0,0.00010899,2]
[335104314,1723828231982,-300.0,0.00010899,2]
[335104315,1723828231991,-20529.89174416,0.000109,2]
[335104316,1723828232002,-3182.66143813,0.000109,2]
[335104317,1723828232017,-3181.73495844,0.000109,2]
[335104318,1723828232028,-570.09,0.000109,2]
[335104319,1723828232040,-3100.0,0.000109,2]
[335104320,1723828232052,-250.33780553,0.000109,2]
[335104321,1723828232076,-2167.0181534,0.000109,2]
[335104322,1723828232094,-871.5527439,0.000109,2]
[335104323,1723828232106,-1408.61175644,0.000109,2]
[335104325,1723828232115,-251.4644,0.000109,2]
[335104327,1723828232125,-497.86808237,0.000109,2]
[335104329,1723828232134,-579.3906858,0.000109,2]
[335104331,1723828232145,-767.4133614,0.000109,2]
[335104333,1723828232154,-211.10292658,0.00010949,2]
[335104335,1723828232163,-150.0,0.00010959,2]
[335104337,1723828232172,-212.19,0.00010959,2]
[335104339,1723828232181,-27.73896232,0.00010989,2]
[335104341,1723828232193,-320.09197372,0.00010989,2]
[335104343,1723828232202,-500.0,0.00010999,2]
[335104345,1723828232213,-435.95315931,0.00010999,2]
[335104347,1723828232223,-605.87868122,0.00010999,2]
[335104349,1723828232232,-1568.86,0.00010999,2]
[335104352,1723828232242,-595.0,0.00011,2]
[335104354,1723828232252,-2038.44510093,0.00011,2]
[335104356,1723828232263,-1357.62885533,0.00011,2]
[335104364,1723828237704,-408.51352335,0.00010852,2]
[335104365,1723828237717,-536.0,0.00011,2]
[335104366,1723828237726,-2580.28484146,0.00011,2]
[335104367,1723828237821,-573.2828905,0.00011,2]
[335104368,1723828237833,-5810.0,0.00011,2]
[335104537,1723828239742,-3034.40194767,0.00011,2]
[335104550,1723828239861,-879.54578,0.00011,2]
[335104552,1723828239872,-388.755,0.00011,2]
[335104576,1723828240091,-27328.65145296,0.00011,2]
[335104578,1723828240105,-7071.08,0.00011,2]
[335104709,1723828244828,-5925.69599542,0.00011,2]
[335104819,1723828246109,-413.0,0.00011,2]
[335104820,1723828246224,-1122.33900614,0.00011,2]
[335104853,1723829239402,-200.0,0.0001,2]
[335105131,1723829310075,-264.71692735,0.0001,2]
[335105246,1723829432131,-85.28307265,0.0001,2]
[335105247,1723829432142,-417.167595,0.00010807,2]
[335105248,1723829432151,-155.0,0.00010862,2]
[335105249,1723829432161,-150.0,0.00010899,2]
[335105250,1723829432170,-3888.8824,0.000109,2]
[335105251,1723829432180,-17471.79793294,0.000109,2]
[335105253,1723829432189,-345.78879963,0.000109,2]
[335105254,1723829432199,-439.13457729,0.000109,2]
[335105255,1723829432208,-2376.77820132,0.0001099,2]
[335105257,1723829432218,-3449.6599036,0.00010997,2]
[335105259,1723829432227,-168.35315689,0.00010997,2]
[335105260,1723829432237,-29731.15436068,0.00010998,2]
[335105261,1723829432248,-412.71952166,0.00010998,2]
[335105262,1723829432257,-159.4139624,0.00010999,3]
[335105268,1723829438022,-592.08569065,0.00010999,3]
[335105269,1723829438032,-476.81295156,0.00010999,2]
[335105270,1723829438044,-23.18704844,0.00010999,2]
[335105271,1723829438054,-379.25511935,0.00010999,2]
[335105272,1723829438173,-120.74488065,0.00010999,2]
[335105273,1723829438183,-500.0,0.00010999,2]
[335105274,1723829438193,-269.22352351,0.00010999,2]
[335105275,1723829438203,-326.18821502,0.00011,2]
[335105276,1723829438215,-1223.13077979,0.00011,2]
[335105277,1723829438227,-437.70943335,0.00011,2]
[335105278,1723829438238,-2173.28413778,0.00011,2]
[335105279,1723829438278,-3022.99999999,0.00011,2]
[335105280,1723829438289,-1367.5905978,0.00011,2]
[335105485,1723829442291,-508.47077684,0.000109,2]
[335105486,1723829442374,-691.71049462,0.000109,2]
[335105487,1723829442385,-1493.42682292,0.000109,2]
[335105488,1723829442395,-269.79246935,0.00011,2]
[335105489,1723829442407,-37741.0451726,0.00011,2]
[335105490,1723829442682,-94673.15782202,0.00011,2]
[335105491,1723829442694,-41786.03855493,0.00011,2]
[335105492,1723829442706,-49633.9883586,0.00011,2]
[335105493,1723829442719,-130795.98149412,0.00011,2]
[335105496,1723829442968,-2183.82,0.00011,2]
[335105503,1723829443868,-77430.58015992,0.00011,2]
[335105548,1723829444852,-3053.39547449,0.00011,2]
[335105556,1723829446176,-656.9760301,0.00011,2]
[335105677,1723830464045,150.0,0.00010026,2]
[335105678,1723830464069,150.0,0.00010026,2]
[335105679,1723830464091,150.0,0.00010026,2]
[335105680,1723830464118,150.0,0.00010026,2]
[335105681,1723830464141,150.0,0.00010026,2]
[335105682,1723830464164,142.72350459,0.00010026,2]
[335105697,1723830503769,150.0,9.985e-05,2]
[335105698,1723830503792,150.0,9.985e-05,2]
[335105699,1723830503813,150.0,9.985e-05,2]
[335105700,1723830503834,150.0,9.985e-05,2]
[335105701,1723830503855,161.77530828,9.985e-05,2]
[335105702,1723830503886,238.22469172,9.985e-05,2]
[335105703,1723830507950,1139.1217656,0.00010026,2]
[335105705,1723830515405,745.87706234,0.00010026,2]
[335105706,1723830515432,328.80217289,0.00010026,2]
[335105712,1723830537490,152.31385682,0.00010026,2]
[335105713,1723830537518,1480.89824167,0.00010026,2]
[335105726,1723830558381,150.0,8.219e-05,2]
[335105727,1723830558405,150.0,8.219e-05,2]
[335105728,1723830558428,150.0,8.219e-05,2]
[335105729,1723830558450,150.0,8.219e-05,2]
[335105730,1723830558473,150.0,8.219e-05,2]
[335105731,1723830558497,150.0,8.219e-05,2]